bitfinex/quotes_ETHUSD_20240621
["timestamp","ask_amount","ask_price","bid_price","bid_amount"]
[1718976831675,3.0,3486.8,3484.7,2.29573]
[1718976831825,3.0,3486.8,3483.3,1.044019]
[1718976831826,3.0,3486.8,3484.0,2.29615]
[1718976832033,0.55,3486.7,3483.9,2.29622]
[1718976832228,0.55,3486.7,3484.1,2.2961]
[1718976832454,0.55,3486.7,3483.8,2.29628]
[1718976832626,0.55,3486.7,3483.3,1.044019]
[1718976832627,0.55,3486.7,3484.0,2.29615]
[1718976832844,5.1257,3486.6,3483.8,2.29629]
[1718976833049,3.55,3486.5,3484.0,2.2962]
[1718976833296,3.55,3486.5,3483.8,2.29633]
[1718976833574,3.55,3486.5,3484.1,2.29609]
[1718976833777,3.55,3486.5,3484.3,2.296]
[1718976833778,3.217,3486.5,3484.3,2.296]
[1718976833939,3.217,3486.5,3483.9,0.799878]
[1718976833940,3.0,3486.5,3483.9,0.799878]
[1718976834140,3.0,3486.5,3483.6,3.406]
[1718976834356,3.0,3486.5,3484.5,2.29587]
[1718976834677,3.0,3486.5,3483.6,3.406]
[1718976834678,3.0,3486.5,3483.6,4.156]
[1718976834852,3.0,3486.5,3484.9,2.29559]
[1718976835175,3.0,3486.5,3484.7,2.29569]
[1718976835477,3.0,3486.5,3484.8,2.525239]
[1718976835694,3.0,3486.5,3485.4,2.29527]
[1718976835852,3.0,3486.5,3484.8,0.229569]
[1718976836059,3.0,3486.5,3485.0,2.29555]
[1718976836248,3.0,3486.5,3484.4,3.0]
[1718976836249,3.0,3486.5,3485.3,2.29531]
[1718976836449,3.0,3486.5,3484.9,2.29559]
[1718976836666,3.0,3486.5,3484.9,2.29561]
[1718976836852,3.0,3486.5,3484.4,3.0]
[1718976837074,3.0,3486.5,3485.3,2.29533]
[1718976837277,3.0,3486.5,3485.0,2.29554]
[1718976837584,3.0,3486.5,3484.6,3.0]
[1718976837877,3.0,3486.5,3484.8,2.29568]
[1718976838081,3.0,3486.5,3484.7,0.55]
[1718976838245,3.0,3486.5,3484.9,2.29559]
[1718976838565,3.0,3486.5,3484.8,2.29566]
[1718976838764,3.0,3486.5,3484.2,4.73]
[1718976838765,4.73,3486.5,3484.1,2.29612]
[1718976838952,1.73,3486.3,3484.4,2.29594]
[1718976839151,1.73,3486.3,3484.1,0.229612]
[1718976839476,0.55,3486.4,3484.1,0.229612]
[1718976839477,4.73,3486.5,3484.1,3.229612]
[1718976839685,3.0,3486.5,3484.9,2.29555]
[1718976839849,3.0,3486.5,3485.1,2.29542]
[1718976840173,3.0,3486.5,3484.9,2.29559]
[1718976840397,3.0,3486.5,3484.2,0.7255852]
[1718976840700,1.73,3486.3,3484.5,2.29586]
[1718976840886,1.73,3486.3,3484.5,2.29583]
[1718976841091,4.73,3486.3,3484.5,2.29584]
[1718976841291,4.73,3486.3,3485.1,2.29548]
[1718976841292,3.0,3486.3,3485.1,2.29548]
[1718976841462,3.0,3486.3,3485.3,2.29533]
[1718976841670,4.7167,3486.4,3485.5,2.29522]
[1718976841863,4.7167,3486.4,3484.8,3.0]
[1718976842088,4.7167,3486.4,3484.9,2.2956]
[1718976842298,4.7167,3486.4,3485.4,2.29527]
[1718976842610,0.121277,3487.0,3485.6,2.29515]
[1718976842811,0.121277,3487.0,3485.7,2.29508]
[1718976842967,0.121277,3487.0,3486.5,2.2945]
[1718976843167,0.121277,3487.0,3486.7,2.29443]
[1718976843420,0.121277,3487.0,3486.7,2.753327]
[1718976843570,0.121277,3487.0,3486.8,2.29436]
[1718976844078,0.121277,3487.0,3486.7,2.753317]
[1718976844268,0.121277,3487.0,3486.7,2.29442]
[1718976844469,0.121277,3487.0,3486.5,2.29454]
[1718976844666,0.121277,3487.0,3485.7,5.29507]
[1718976844877,0.121277,3487.0,3486.0,2.29488]
[1718976845113,6.4093,3487.8,3486.0,2.29488]
[1718976845114,6.030577,3487.8,3486.0,2.29488]
[1718976845407,6.030577,3487.8,3486.0,0.584488]
[1718976845609,6.030577,3487.8,3484.9,1.73]
[1718976845610,1.73,3487.8,3484.9,1.73]
[1718976845923,0.2883,3487.7,3485.7,2.29508]
[1718976846068,0.2883,3488.7,3486.1,2.29482]
[1718976846274,0.75,3488.8,3485.8,0.229508]
[1718976846275,0.2883,3488.5,3485.9,2.29494]
[1718976846475,0.78490889,3488.4,3486.0,2.29486]
[1718976846695,0.78490889,3488.4,3485.8,2.524518]
[1718976846696,0.49660889,3488.3,3485.8,2.524518]
[1718976846902,0.2883,3488.4,3486.0,2.29488]
[1718976847086,1.73,3488.3,3485.8,2.524518]
[1718976847288,0.2883,3488.4,3484.9,1.73]
[1718976847289,1.73,3488.1,3484.9,1.73]
[1718976847499,1.73,3487.9,3485.6,2.29515]
[1718976847712,1.33486275,3488.0,3485.4,2.29528]
[1718976847713,2.0183,3487.2,3485.4,2.29528]
[1718976848172,5.25425506,3487.1,3485.4,2.29528]
[1718976848419,5.25425506,3487.1,3483.7,1.5]
[1718976848420,1.73,3486.9,3484.4,2.29589]
[1718976848589,6.4876,3486.7,3484.6,2.29581]
[1718976848793,6.4876,3486.7,3484.1,0.229612]
[1718976848794,1.73,3486.5,3484.1,0.229612]
[1718976849092,3.0,3486.6,3484.1,2.29613]
[1718976849293,5.0121,3486.3,3484.2,2.29604]
[1718976850430,5.0121,3486.3,3483.2,2.29667]
[1718976850431,4.9924,3485.8,3482.4,8.463]
[1718976850612,1.73,3485.5,3482.4,8.463]
[1718976850912,1.73,3485.5,3483.5,2.29647]
[1718976850913,0.4967664,3485.4,3483.5,2.29647]
[1718976851078,0.4967664,3485.4,3482.6,2.29712]
[1718976851079,0.4967664,3485.4,3483.4,2.29659]
[1718976851278,0.4967664,3485.4,3483.2,2.2967]
[1718976851525,3.0,3485.5,3482.9,2.29691]
[1718976851526,7.52305596,3485.3,3482.9,2.29691]
[1718976851732,7.52305596,3485.3,3483.2,2.29667]
[1718976851733,1.73,3485.1,3483.2,2.29667]
[1718976851891,4.7461,3485.2,3482.9,0.459404]
[1718976851892,1.73,3484.9,3482.9,0.459404]
[1718976852095,0.49700156,3484.8,3482.9,2.756274]
[1718976852284,0.49700156,3484.7,3482.5,3.0]
[1718976852487,1.73,3484.9,3482.8,2.29698]
[1718976852683,0.49697716,3484.8,3482.8,2.29698]
[1718976852900,7.7461,3485.2,3483.2,2.29673]
[1718976852901,0.49697458,3484.7,3483.2,2.29673]
[1718976853124,7.7461,3485.2,3483.7,2.29639]
[1718976853280,7.7461,3485.2,3483.1,2.29677]
[1718976853281,4.7461,3485.2,3483.8,2.29629]
[1718976853482,4.7461,3485.2,3483.9,0.229629]
[1718976853721,5.2035,3486.7,3484.5,2.29581]
[1718976853885,0.49674082,3486.6,3484.2,2.29607]
[1718976854079,0.75,3487.1,3484.5,2.29581]
[1718976854080,5.93934082,3486.5,3484.5,2.29581]
[1718976854308,0.49677524,3486.4,3484.9,2.29559]
[1718976854513,3.0,3486.4,3484.9,0.459133]
[1718976854718,0.49675,3486.3,3484.7,2.29572]
[1718976854928,1.73,3486.3,3483.9,0.229629]
[1718976855219,4.763,3486.1,3484.7,2.29574]
[1718976855621,0.49681105,3486.0,3484.7,2.29574]
[1718976855921,4.763,3486.1,3484.2,2.29606]
[1718976855922,0.49681658,3485.9,3484.2,2.29606]
[1718976856218,0.49681658,3485.8,3483.6,2.99848997]
[1718976856442,3.49681658,3486.0,3483.7,0.299849]
[1718976856584,4.8809,3485.6,3483.5,2.29653]
[1718976856783,0.49681658,3485.5,3483.1,2.29679]
[1718976857025,4.8809,3485.4,3483.6,2.29644]
[1718976857226,3.49692236,3485.3,3483.3,2.29665]
[1718976857522,3.0,3485.3,3483.4,1.959665]
[1718976857723,3.0,3485.3,3484.2,2.29607]
[1718976857923,3.0,3485.3,3484.1,2.29613]
[1718976858132,3.0,3485.3,3484.2,2.525643]
[1718976858287,4.8809,3485.4,3484.3,2.296]
[1718976858489,4.8809,3485.4,3484.3,2.29601]
[1718976858848,7.4,3485.8,3485.0,2.29554]
[1718976859171,4.7131,3486.2,3485.1,0.01955718]
[1718976859320,4.7131,3486.2,3485.4,2.29528]
[1718976859687,4.7131,3486.2,3485.1,0.23151172]
[1718976859886,4.7131,3486.2,3485.4,2.29527]
[1718976860089,4.7131,3486.2,3485.5,2.29522]
[1718976860331,4.736,3486.9,3485.3,2.2953]
[1718976860500,4.736,3486.9,3485.4,1.03221617]
[1718976860691,4.736,3486.9,3485.4,3.32748617]
[1718976861019,4.736,3486.9,3485.7,2.29508]
[1718976861220,4.736,3486.9,3485.4,1.03221617]
[1718976861221,4.736,3486.9,3485.5,2.29521]
[1718976861429,4.736,3486.9,3485.5,2.29516]
[1718976861603,4.736,3486.9,3485.7,2.29506]
[1718976861798,4.736,3486.9,3485.7,2.29508]
[1718976862003,4.736,3486.9,3485.6,2.62786762]
[1718976862308,4.736,3486.9,3485.8,2.29501]
[1718976862509,4.736,3486.9,3485.6,0.33273762]
[1718976862711,4.736,3486.9,3485.1,0.23151172]
[1718976862930,3.49667704,3486.8,3485.2,2.29541]
[1718976863124,3.49668742,3486.8,3485.1,0.23151172]
[1718976863304,2.22668742,3486.7,3484.7,3.0]
[1718976863486,2.22668742,3486.7,3484.6,2.29575]
[1718976863487,5.51108742,3486.6,3484.6,3.0]
[1718976863687,3.49668742,3486.5,3484.7,2.29568]
[1718976863929,3.0,3486.5,3485.0,2.29552]
[1718976864112,0.49672765,3486.4,3484.8,2.29568]
[1718976864322,3.0,3486.5,3483.3,1.34553833]
[1718976864323,0.49672765,3486.3,3483.5,2.29652]
[1718976864486,3.0,3486.5,3484.6,2.29575]
[1718976864487,0.49672765,3486.2,3484.6,2.29575]
[1718976864691,3.0,3486.5,3484.8,2.29567]
[1718976864692,0.49672765,3486.4,3484.8,2.29567]
[1718976864933,2.22672765,3486.4,3484.2,2.29605]
[1718976865091,1.73,3486.2,3484.0,3.14314]
[1718976865292,1.73,3485.9,3484.0,0.84694]
[1718976865511,2.22672765,3485.8,3483.9,2.29626]
[1718976865722,1.73,3485.8,3483.9,2.29626]
[1718976865924,0.49687725,3485.7,3483.9,2.29627]
[1718976866131,3.0,3485.9,3484.2,2.29602]
[1718976866332,2.08667504,3485.8,3484.2,2.29602]
[1718976866612,2.08667504,3485.8,3484.3,0.459222]
[1718976866821,2.08667504,3485.8,3484.4,2.29592]
[1718976867233,3.0,3485.9,3484.8,2.29562]
[1718976867539,3.0,3485.9,3484.5,0.55]
[1718976867707,3.0,3485.9,3484.1,5.29612]
[1718976867708,5.0362,3486.0,3484.2,0.55]
[1718976868037,2.08656279,3485.9,3484.5,2.29587]
[1718976868194,5.0362,3486.0,3484.3,0.355]
[1718976868195,5.0362,3486.0,3484.4,3.0]
[1718976868397,2.0864372,3485.9,3484.5,2.84587]
[1718976868597,5.0362,3486.0,3483.9,3.0]
[1718976868794,1.19545379,3485.8,3484.0,0.55]
[1718976869016,1.19545379,3485.8,3483.1,4.7576]
[1718976869017,3.2820025,3485.7,3483.5,2.29653]
[1718976869230,3.2820025,3485.7,3483.6,2.29644]
[1718976869231,1.19519485,3485.4,3483.6,2.29644]
[1718976869439,2.08683693,3485.3,3483.2,2.29673]
[1718976869619,4.19519485,3485.5,3483.9,2.29627]
[1718976869620,3.2821869,3485.2,3483.9,2.29627]
[1718976869823,4.19519485,3485.5,3484.3,2.29598]
[1718976870146,3.0,3485.5,3484.0,2.29615]
[1718976870294,5.62309485,3485.6,3484.0,2.29615]
[1718976870295,1.19519485,3485.4,3484.0,2.29615]
[1718976870494,5.62309485,3485.6,3484.3,2.296]
[1718976870700,5.62309485,3485.6,3484.4,2.29593]
[1718976870701,4.4279,3485.6,3484.4,2.29593]
[1718976871239,4.4279,3485.6,3484.1,0.4715064]
[1718976871240,4.4279,3485.6,3484.9,2.2956]
[1718976871402,4.4279,3485.6,3484.7,2.2957]
[1718976871813,4.4279,3485.6,3484.3,2.29599]
[1718976872020,5.74244519,3486.2,3485.1,2.29543]
[1718976872331,5.74244519,3486.2,3484.9,2.29559]
[1718976872332,4.5474,3486.2,3484.9,2.29559]
[1718976872541,4.5474,3486.2,3485.0,0.55]
[1718976872861,4.5474,3486.2,3485.2,2.2954]
[1718976873059,4.5474,3486.2,3485.3,0.514088]
[1718976873751,1.19504519,3486.0,3484.7,3.0]
[1718976874060,1.19504519,3486.1,3484.9,2.29561]
[1718976874217,4.5474,3486.2,3485.0,2.84552]
[1718976874421,4.5474,3486.2,3484.8,0.55]
[1718976874422,4.5474,3486.2,3484.8,2.84566]
[1718976874619,5.74244519,3486.2,3485.1,2.29548]
[1718976874822,5.74244519,3486.2,3485.2,0.55]
[1718976875145,5.74244519,3486.2,3484.9,0.457566]
[1718976875318,1.19504519,3486.0,3485.0,2.29554]
[1718976875514,1.19504519,3486.0,3484.9,0.457566]
[1718976875761,1.19504519,3485.9,3485.0,0.3303186]
[1718976876070,1.19504519,3486.1,3485.5,2.29521]
[1718976876357,1.19504519,3486.4,3485.5,2.29521]
[1718976876561,1.19504519,3486.3,3485.6,0.229521]
[1718976877224,4.5785,3486.9,3485.6,0.229521]
[1718976877225,1.19504519,3486.2,3485.6,0.229521]
[1718976877422,1.19610777,3486.3,3485.6,0.229521]
[1718976877652,1.19610777,3486.2,3485.3,3.0]
[1718976877851,1.19610777,3486.2,3485.3,5.29535]
[1718976878063,1.19610402,3486.3,3485.9,2.29493]
[1718976878218,1.49513002,3486.5,3485.5,2.29522]
[1718976878219,1.19610402,3486.4,3485.5,2.29522]
[1718976878423,1.19610402,3486.3,3485.6,0.55]
[1718976878624,4.5785,3486.9,3485.7,2.29507]
[1718976878625,1.19610402,3486.4,3485.7,2.29507]
[1718976878867,6.37265603,3486.9,3485.7,0.514022]
[1718976878868,1.19610402,3486.3,3485.7,0.514022]
[1718976879255,1.19610402,3486.3,3485.6,0.55]
[1718976879420,1.19610402,3486.3,3485.8,2.29502]
[1718976879758,1.19610402,3486.4,3485.8,2.295]
[1718976879957,1.19610402,3486.4,3485.9,2.29494]
[1718976880116,1.19610402,3486.5,3485.8,2.29501]
[1718976880317,1.19571184,3486.4,3485.9,0.229501]
[1718976880532,1.19571184,3486.5,3485.9,0.229501]
[1718976881365,1.19571184,3486.7,3486.1,2.29477]
[1718976881660,1.19571184,3486.7,3486.0,2.29487]
[1718976881817,1.19571184,3486.9,3486.5,2.29449]
[1718976882019,1.4946398,3487.1,3486.5,2.29449]
[1718976882020,1.19511876,3487.1,3486.7,2.29442]
[1718976882266,1.79267814,3487.6,3486.7,2.29442]
[1718976882267,1.19511876,3487.4,3486.7,2.29442]
[1718976882776,1.19511876,3487.5,3486.7,2.29442]
[1718976883121,1.19511876,3487.4,3486.6,2.523929]
[1718976883351,3.48856897,3487.5,3486.7,2.7762619]
[1718976883854,2.2939,3487.5,3486.7,2.7762619]
[1718976884019,3.48856897,3487.5,3486.7,2.7762619]
[1718976884225,2.2939,3487.5,3486.7,2.7762619]
[1718976884420,2.29415,3487.2,3486.7,0.4818419]
[1718976884726,2.29397,3487.4,3486.7,0.4818419]
[1718976884727,2.29404,3487.3,3486.7,0.4818419]
[1718976885031,2.29404,3487.3,3486.6,2.29448]
[1718976885234,1.19466897,3487.6,3486.8,2.29434]
[1718976885437,2.29343,3488.3,3487.4,2.29391]
[1718976885438,1.19466897,3488.2,3487.4,2.29391]
[1718976885655,1.19466897,3488.2,3487.5,0.458795]
[1718976885835,2.29326,3488.5,3487.5,2.752695]
[1718976885836,1.19466897,3488.5,3487.5,2.752695]
[1718976886040,1.19466897,3488.5,3488.0,2.29351]
[1718976886286,3.78644621,3488.7,3487.9,2.29364]
[1718976886287,2.29324,3488.6,3487.9,2.29363]
[1718976886594,2.29311,3488.8,3487.9,2.29361]
[1718976886877,2.29306,3488.8,3488.1,2.2935]
[1718976887110,2.29317,3488.7,3488.0,0.458731]
[1718976887381,2.29292,3489.0,3488.1,2.7981061]
[1718976887599,2.29285,3489.2,3488.1,0.5046061]
[1718976887600,2.29299,3488.9,3488.1,0.5046061]
[1718976887871,2.29299,3488.9,3488.2,2.29344]
[1718976888092,2.29312,3488.7,3488.3,0.27980461]
[1718976888376,2.29312,3488.7,3487.8,2.2937]
[1718976888377,2.29314,3488.7,3487.8,2.2937]
[1718976888675,2.29293,3489.0,3488.3,2.29338]
[1718976888885,4.6194,3489.3,3488.4,2.2933]
[1718976889104,2.29232,3490.0,3488.4,0.35128052]
[1718976889105,2.29284,3489.2,3488.4,0.35128052]
[1718976889280,2.29278,3489.3,3488.4,0.35128052]
[1718976889593,2.29266,3489.4,3488.4,0.35128052]
[1718976889594,2.29283,3489.2,3488.4,0.35128052]
[1718976889747,2.29285,3489.1,3488.2,2.29343]
[1718976889942,2.29285,3489.1,3488.3,0.55]
[1718976890253,3.0,3489.8,3488.3,2.84332]
[1718976890473,5.29239,3489.8,3488.6,2.29317]
[1718976890679,0.121277,3490.5,3488.9,2.29298]
[1718976890680,2.29227,3490.0,3488.9,2.29298]
[1718976890893,2.29227,3490.0,3489.0,0.284298]
[1718976890894,2.29226,3490.0,3489.0,0.284298]
[1718976891045,4.879077,3490.5,3489.2,2.29278]
[1718976891046,2.2922,3490.1,3489.2,2.29278]
[1718976891246,2.29222,3490.1,3489.2,2.29274]
[1718976891559,2.29227,3490.0,3489.3,0.8627038]
[1718976891866,2.29226,3490.0,3489.3,0.8627038]
[1718976892069,0.121277,3490.5,3489.3,0.8627038]
[1718976892256,2.29227,3490.0,3489.3,0.8627038]
[1718976892444,2.29233,3489.9,3489.3,0.8627038]
[1718976892792,0.121277,3490.5,3489.0,0.284298]
[1718976893079,2.29251,3489.7,3488.9,2.29292]
[1718976893256,2.29227,3490.0,3489.1,2.29284]
[1718976893461,2.29208,3490.3,3489.0,0.55]
[1718976893462,2.29213,3490.2,3489.3,2.29271]
[1718976893759,2.29233,3489.9,3489.0,0.55]
[1718976893959,2.29219,3490.1,3489.3,2.2927]
[1718976894189,0.121277,3490.5,3489.1,1.958]
[1718976894387,2.29209,3490.3,3489.4,2.29265]
[1718976894592,2.29213,3490.2,3489.5,2.84258]
[1718976894943,0.121277,3490.5,3489.5,0.55]
[1718976894944,2.2922,3490.1,3489.5,0.55]
[1718976895193,5.413267,3490.5,3489.5,1.063536]
[1718976895346,2.413207,3490.5,3489.6,2.29252]
[1718976895545,2.413207,3490.5,3489.2,2.29272]
[1718976895546,2.29205,3490.4,3489.2,2.29272]
[1718976895780,2.29226,3490.0,3489.1,0.228]
[1718976895954,0.121277,3490.5,3489.1,0.228]
[1718976895955,2.29239,3489.8,3489.1,0.228]
[1718976896146,2.29239,3489.8,3489.1,2.29284]
[1718976896345,2.29233,3489.9,3488.8,2.29302]
[1718976896586,2.29246,3489.7,3489.0,2.29285]
[1718976896828,2.29253,3489.6,3488.9,5.29298]
[1718976896992,2.29233,3489.9,3488.9,3.631619]
[1718976897152,2.29233,3489.9,3489.2,2.29277]
[1718976897479,2.29208,3490.3,3489.2,0.2924389]
[1718976897649,2.29239,3489.8,3489.2,0.2924389]
[1718976897850,2.29215,3490.2,3489.2,0.2924389]
[1718976898049,2.29264,3489.5,3488.9,0.631619]
[1718976898268,2.29253,3489.6,3489.0,0.55]
[1718976898474,2.29235,3489.9,3489.0,0.55]
[1718976898677,2.29213,3490.2,3488.7,2.8431]
[1718976898678,2.29254,3489.6,3488.7,2.8431]
[1718976898880,4.863,3490.1,3488.2,2.29344]
[1718976899087,4.863,3490.1,3487.7,2.29375]
[1718976899088,2.29322,3488.6,3487.9,2.29363]
[1718976899259,2.29259,3489.5,3488.6,2.29317]
[1718976899466,3.0,3490.0,3488.5,2.29324]
[1718976899678,2.29253,3489.6,3488.9,2.29298]
[1718976899864,2.29253,3489.6,3488.9,2.751583]
[1718976900063,2.29253,3489.6,3488.9,0.458603]
[1718976900324,2.29234,3489.9,3488.9,2.751533]
[1718976900599,2.29189,3490.6,3488.6,2.29312]
[1718976900600,2.29227,3490.0,3488.6,2.29312]
[1718976900772,2.413277,3490.5,3488.7,1.73]
[1718976900773,0.121277,3490.5,3488.7,1.73]
[1718976900980,2.29221,3490.1,3489.2,2.29272]
[1718976901183,3.121277,3490.5,3489.3,2.28]
[1718976901184,0.121277,3490.5,3489.3,2.28]
[1718976901499,0.121277,3490.5,3488.8,0.55]
[1718976901500,0.121277,3490.5,3489.5,2.29252]
[1718976901699,2.29202,3490.4,3489.5,2.29252]
[1718976901864,0.121277,3490.5,3489.7,2.2924]
[1718976902068,2.413217,3490.5,3489.8,3.07162]
[1718976902363,0.121277,3490.5,3490.3,2.29205]
[1718976902586,0.121277,3490.5,3490.3,0.458418]
[1718976902785,0.121277,3490.5,3489.9,2.29227]
[1718976902999,2.29201,3490.4,3489.8,2.52162]
[1718976903175,0.121277,3490.5,3489.6,0.55]
[1718976903514,0.121277,3490.5,3488.2,2.86]
[1718976903515,2.29265,3489.4,3488.2,2.86]
[1718976903663,2.29262,3489.5,3488.2,2.29343]
[1718976903863,2.29262,3489.5,3488.1,4.766]
[1718976903864,2.29215,3490.2,3488.7,2.29306]
[1718976904068,2.29252,3489.6,3488.8,0.229306]
[1718976904304,2.29284,3489.2,3488.8,0.229306]
[1718976904489,2.29284,3489.2,3488.5,2.29324]
[1718976904690,2.29294,3489.0,3488.3,2.29337]
[1718976904898,2.29334,3488.4,3487.8,5.1537]
[1718976905118,2.29325,3488.5,3487.9,1.030753]
[1718976905400,2.29321,3488.6,3487.9,1.030753]
[1718976905701,4.73,3489.9,3487.9,1.030753]
[1718976905702,3.0,3489.9,3487.9,1.030753]
[1718976906005,3.0,3489.9,3487.7,2.29371]
[1718976906006,2.2926,3489.5,3487.7,2.29371]
[1718976906180,3.0,3489.9,3488.0,2.29356]
[1718976906181,2.293,3488.9,3488.0,2.29356]
[1718976906375,3.0,3489.9,3487.7,2.29377]
[1718976906376,2.29269,3489.4,3487.7,2.29377]
[1718976906589,2.29269,3489.4,3487.6,2.86]
[1718976906590,2.29312,3488.7,3487.8,0.959627]
[1718976906783,2.29337,3488.4,3487.8,0.959627]
[1718976907491,2.29337,3488.4,3487.6,2.86]
[1718976907700,2.29337,3488.4,3487.7,2.29377]
[1718976908304,2.29337,3488.4,3487.6,2.86]
[1718976908474,2.29314,3488.7,3487.6,2.86]
[1718976908669,2.29287,3489.1,3488.0,2.29357]
[1718976908994,2.29277,3489.3,3488.4,2.2933]
[1718976909199,2.29262,3489.5,3488.8,2.29304]
[1718976909565,2.29267,3489.4,3488.4,2.29324]
[1718976909809,2.29293,3489.0,3488.5,1.481661]
[1718976910107,7.1884,3490.0,3488.1,0.458721]
[1718976910262,4.8961,3490.0,3488.1,0.458721]
[1718976910464,4.8961,3490.0,3488.2,0.55]
[1718976910465,2.29247,3489.7,3488.2,0.55]
[1718976910661,2.29305,3488.8,3488.1,2.8435]
[1718976910902,2.29283,3489.2,3488.2,2.29344]
[1718976911107,2.29283,3489.2,3488.0,4.8973]
[1718976911108,2.29289,3489.1,3488.3,2.84334]
[1718976911401,2.2926,3489.5,3488.3,0.55]
[1718976911705,2.29358,3488.0,3487.6,2.86]
[1718976911863,2.29358,3488.0,3487.7,0.74782]
[1718976912069,2.29358,3488.0,3486.9,6.91246]
[1718976912070,2.29377,3487.7,3487.0,2.29423]
[1718976912313,2.29365,3487.9,3487.1,2.29414]
[1718976912611,2.29351,3488.1,3486.9,6.3482]
[1718976912764,2.29351,3488.1,3486.9,7.212461]
[1718976912765,2.2939,3487.6,3486.9,7.212461]
[1718976912965,2.2939,3487.6,3486.9,0.864261]
[1718976913268,2.29351,3488.1,3487.2,2.2941]
[1718976913487,2.2935,3488.2,3487.4,2.29395]
[1718976913700,3.0,3488.5,3486.9,1.73]
[1718976913904,3.0,3488.5,3486.6,6.266]
[1718976913905,2.29372,3487.8,3487.0,0.173]
[1718976914209,2.29346,3488.2,3486.7,2.29442]
[1718976914415,2.29346,3488.2,3486.5,1.73]
[1718976914416,2.29385,3487.6,3486.5,1.73]
[1718976914699,2.29385,3487.6,3486.4,2.86]
[1718976914700,2.29432,3486.9,3486.6,1.156096]
[1718976914915,2.29457,3486.5,3485.8,2.29502]
[1718976915065,2.29457,3486.5,3485.6,2.29515]
[1718976915269,2.29457,3486.5,3485.4,4.02525]
[1718976915500,2.29457,3486.5,3485.8,2.29499]
[1718976915716,2.29449,3486.7,3485.7,2.29508]
[1718976915901,2.29477,3486.2,3485.4,4.02528]
[1718976916077,2.29444,3486.7,3485.5,1.112256]
[1718976916280,2.29456,3486.6,3485.9,2.29495]
[1718976916468,3.0,3487.1,3485.5,3.407466]
[1718976916469,2.29457,3486.5,3485.8,2.29501]
[1718976916916,2.29457,3486.5,3485.6,2.29509]
[1718976917078,2.29457,3486.5,3485.5,1.112256]
[1718976917079,3.0,3487.1,3485.9,2.29493]
[1718976917277,2.29451,3486.6,3485.9,2.29493]
[1718976917690,2.29451,3486.6,3485.7,2.8087746]
[1718976917890,2.29417,3487.1,3486.0,2.29489]
[1718976918098,7.4,3487.4,3486.7,2.29443]
[1718976918311,2.29378,3487.7,3487.0,2.29423]
[1718976918470,2.29377,3487.8,3487.1,0.0485631]
[1718976918471,2.29385,3487.6,3487.1,0.0485631]
[1718976918674,7.4,3488.7,3487.1,0.28284941]
[1718976918911,2.29359,3488.0,3487.2,2.2941]
[1718976919206,2.29359,3488.0,3487.3,0.55]
[1718976919374,2.29357,3488.1,3487.3,0.55]
[1718976919575,2.29357,3488.1,3487.0,0.55]
[1718976919777,2.29365,3487.9,3487.3,2.29403]
[1718976919999,2.29365,3487.9,3487.4,0.55]
[1718976920219,2.29337,3488.4,3487.4,0.55]
[1718976920379,2.29337,3488.4,3487.3,2.294]
[1718976920380,2.29358,3488.0,3487.3,2.294]
[1718976920588,2.29344,3488.2,3487.4,1.116614]
[1718976920589,2.29351,3488.1,3487.4,1.116614]
[1718976920886,2.29366,3487.9,3487.4,1.116614]
[1718976921087,2.29354,3488.1,3487.4,0.55]
[1718976921293,2.29298,3488.9,3486.5,2.29454]
[1718976921294,2.29403,3487.3,3486.5,2.29454]
[1718976921527,2.29403,3487.3,3486.3,4.6569]
[1718976921870,2.29367,3487.9,3486.7,2.29439]
[1718976921979,2.29369,3487.9,3487.1,2.29412]
[1718976922177,2.29349,3488.2,3487.2,2.2941]
[1718976922416,2.29351,3488.1,3487.3,0.51615945]
[1718976922577,2.29358,3488.0,3487.3,0.458822]
[1718976922926,2.29349,3488.2,3486.9,1.724]
[1718976922927,2.29384,3487.7,3486.9,2.29426]
[1718976923077,2.29346,3488.2,3487.0,0.55]
[1718976923280,2.29405,3487.3,3487.0,0.55]
[1718976923519,2.29405,3487.3,3487.0,0.284443]
[1718976923678,2.29414,3487.2,3486.5,3.981166]
[1718976923878,2.29371,3487.8,3486.8,2.2943]
[1718976924080,2.29372,3487.8,3487.1,2.29416]
[1718976924313,2.29372,3487.8,3487.0,2.29422]
[1718976924519,2.29383,3487.7,3487.1,0.229422]
[1718976924882,9.69325,3488.5,3487.6,2.29383]
[1718976925190,2.29292,3489.0,3487.8,1.724]
[1718976925400,9.69279,3489.2,3488.1,2.29345]
[1718976925401,2.2931,3488.8,3488.1,2.29345]
[1718976925596,2.29299,3488.9,3488.2,2.84343]
[1718976925896,7.4,3489.2,3488.8,2.29304]
[1718976926109,2.29266,3489.4,3488.3,2.577653]
[1718976926415,2.29266,3489.4,3488.7,2.29311]
[1718976926619,2.29252,3489.6,3488.7,2.29311]
[1718976926927,2.2926,3489.5,3488.5,2.29324]
[1718976927088,7.4,3490.0,3488.5,2.29324]
[1718976927089,2.29265,3489.4,3488.7,2.29305]
[1718976927427,2.29313,3488.7,3488.3,0.284343]
[1718976927635,2.29291,3489.1,3488.3,0.284343]
[1718976927932,2.29317,3488.7,3488.3,0.284343]